Cogmind - Beta 11.1 @@@ ROGUE MODE // 2022.12.13 @ 16:18:52 Player: sasha Result: Destroyed by D-53 Grenadier with Mini Grenade Launcher Performance ------------- Evolutions (0) 0 Regions Visited (2) 400 Robots Destroyed (26) 130 Value Destroyed (620) 620 Prototype IDs (0) 0 Alien Tech Used (0) 0 Bonus (0) 0 TOTAL SCORE: 1150 Bonus ------- None Cogmind --------- Core Integrity 0/250 Matter 300/300 Energy 160/160 System Corruption 2% Temperature Cool (0) Movement Treading (160) Location -10/Mines Parts ------- > --- POWER (1) -------- Light Nuclear Core > --- PROPULSION (2) --- Light Treads Light Treads > --- UTILITY (2) ------ Medium Storage Unit Visual Processing Unit > --- WEAPON (2) ------- Assault Rifle > --- INVENTORY (10) --- Light Nuclear Core Light Treads Light Treads Cooling System Improved Targeting Computer Improved Targeting Computer Improved Targeting Computer Improved Targeting Computer Light Armor Plating Light Armor Plating Peak State ------------ > --- POWER ------------ Light Nuclear Core > --- PROPULSION ------- Light Treads Light Treads > --- UTILITY ---------- Medium Storage Unit Visual Processing Unit > --- WEAPON ----------- Assault Rifle Light Assault Rifle > --- INVENTORY -------- Ion Engine Light Nuclear Core Light Treads Light Treads Cooling System Improved Targeting Computer Improved Targeting Computer Improved Targeting Computer Light Armor Plating Light Armor Plating [Rating: 11] Favorites ----------- Power Light Nuclear Core Engine Ion Engine Power Core Light Nuclear Core Propulsion Light Treads Treads Light Treads Leg Aluminum Leg Utility Medium Storage Unit Storage Medium Storage Unit Processor Visual Processing Unit Protection Weapon Shielding Weapon Assault Rifle Ballistic Gun Assault Rifle Special Weapon Mining Laser Build | -11 -10 -10 ------- Run | Scr Mat Min Slots Evolved . | . . . Power . | . . . Propulsion . | . . . Utility . | . . . Weapon . | . . . Parts Attached 25 | 6 19 . Power 3 | 1 2 . Engine 2 | 1 1 . Core 1 | . 1 . Reactor . | . . . Propulsion 10 | 2 8 . Treads 8 | 2 6 . Leg 2 | . 2 . Wheel . | . . . Hover . | . . . Flight . | . . . Utility 5 | 1 4 . Device . | . . . Storage 2 | 1 1 . Processor 2 | . 2 . Hackware . | . . . Protection 1 | . 1 . Artifact . | . . . Weapon 7 | 2 5 . Energy Gun . | . . . Energy Cannon . | . . . Ballistic Gun 6 | 2 4 . Ballistic Cannon . | . . . Launcher . | . . . Special Weapon 1 | . 1 . Impact Weapon . | . . . Slashing Weapon . | . . . Piercing Weapon . | . . . Special Melee Weapon . | . . . Unidentified Prototypes . | . . . Parts Lost 5 | . 5 . Power 1 | . 1 . Propulsion 2 | . 2 . Utility 1 | . 1 . Weapon 1 | . 1 . Highest Loss Streak 3 | . 3 . To Critical Strikes . | . . . Average Slot Usage (%) 97 | . 95 100 Engine 6 | . 12 . Core 7 | . 1 14 Treads 25 | . 23 28 Leg 1 | . 1 . Storage 14 | . 14 14 Processor 11 | . 8 14 Protection 2 | . 4 . Ballistic Gun 25 | . 23 28 Special Weapon 1 | . 3 . Naked Turns . | . . . Heaviest Build 20 | 14 20 18 Greatest Support 40 | 40 40 40 Greatest Overweight (x) 5 | . 5 . Average Overweight (x) . | . . . Largest Inventory Capacity 10 | 8 10 10 Average Capacity 9 | 6 9 10 Most Carried 10 | 5 10 10 Average Carried 9 | 3 8 10 Final Capacity 10 | 8 10 10 Final Carried 10 | 3 10 10 Class Distribution -------------------- 76% | Scavenger-Mutant 23% | Mutant Dominant Class ---------------- Scavenger-Mutant | -10/Materials Scavenger-Mutant | -10/Mines Resources | -11 -10 -10 ----------- Run | Scr Mat Min Matter Collected 882 | 200 601 81 Remotely . | . . . Salvage Created 877 | . 809 68 Parts 60 | . 53 7 Haulers Intercepted 2 | . 2 . Recyclers Shooed . | . . . Parts Field Recycled . | . . . Retrieved Matter . | . . . Parts Self-Destructed . | . . . Prevented . | . . . Kills | -11 -10 -10 ------- Run | Scr Mat Min Combat Hostiles Destroyed 17 | . 14 3 Guns 17 | . 14 3 Classes Destroyed 7 | . 6 1 Worker 2 | . 1 1 Builder 1 | . 1 . Hauler 2 | . 2 . Recycler 1 | . 1 . Watcher 3 | . 3 . Swarmer 3 | . . 3 Grunt 14 | . 14 . Best Kill Streak 4 | . 4 3 Combat Bots Only 3 | . 3 2 Max Kills in Single Turn 2 | . 2 1 Gunslinging . | . . . Exploded . | . . . Melee . | . . . Uniques/NPCs Destroyed . | . . . Combat | -11 -10 -10 -------- Run | Scr Mat Min Damage Taken 1054 | . 799 255 Core 279 | . 182 97 Absorbed by Shields . | . . . Redirected to Shielding 51 | . 51 . Regen/Repaired (Parts) 65 | . 65 . Core Remaining (%) 100 | 100 . . Volleys Fired 92 | . 78 14 Largest 2 | . 2 2 Hottest 100 | . 100 40 Shots Fired 169 | . 141 28 Gun 168 | . 140 28 Cannon . | . . . Launcher . | . . . Special 1 | . 1 . Kinetic 168 | . 140 28 Thermal 1 | . 1 . Explosive . | . . . Electromagnetic . | . . . Robot Hit Streak 20 | . 20 3 Robot Miss Streak 4 | . 4 4 Penetration Max . | . . . Secondary Targets . | . . . Shots Hit Robots 94 | . 83 11 Core Hits 47 | . 42 5 Critical Kills 1 | . 1 . Critical Parts Destroyed . | . . . Critical Strikes 1 | . 1 . Destroy 1 | . 1 . Melee Attacks . | . . . Impact . | . . . Slashing . | . . . Piercing . | . . . Sneak Attacks . | . . . Combat Hostiles . | . . . Follow-up Attacks . | . . . Damage Inflicted 1241 | . 1106 135 Guns 1235 | . 1100 135 Cannons . | . . . Explosions . | . . . Melee . | . . . Ramming 6 | . 6 . Kinetic 1235 | . 1100 135 Thermal . | . . . Explosive . | . . . Electromagnetic . | . . . Impact . | . . . Slashing . | . . . Piercing . | . . . Highest Corruption 2 | . 2 2 Average Corruption 2 | . 2 2 Corruption Purged . | . . . Corruption Blocked . | . . . Effects 25 | . 9 16 Message Errors 6 | . 3 3 Matter Fused 4 | . 1 3 Heat Flow Errors 3 | . . 3 Energy Discharges 2 | . 1 1 Parts Rejected 1 | . . 1 Data Loss (minor) 7 | . 4 3 Misfires 1 | . . 1 Weapon Failures 1 | . . 1 Overload Shots . | . . . Overflow Damage . | . . . Projectiles . | . . . Explosions . | . . . Melee . | . . . Knockbacks 1 | . 1 . Impact 1 | . 1 . Kinetic . | . . . Secondary . | . . . Self-Inflicted Damage . | . . . Shots . | . . . Rammed 2 | . 2 . Targets Rammed 2 | . 2 . Kicked . | . . . Crushed . | . . . Highest Temperature 217 | . 20 217 Average Temperature 29 | . 4 45 Received Heat Transfer 447 | . 447 . Siege Activations . | . . . Robots Corrupted . | . . . Combat Hostiles . | . . . Parts Fried . | . . . Impact Corruptions . | . . . Robots Melted . | . . . Combat Hostiles . | . . . Parts Melted . | . . . Heat Transferred . | . . . Parts Sabotaged . | . . . Parts Stolen . | . . . Parts Stripped . | . . . Power Chain Reactions . | . . . Missiles Intercepted . | . . . Alert | -11 -10 -10 ------- Run | Scr Mat Min Peak Influence 203 | . 203 135 Initial 22 | . . 22 Average 56 | . 89 18 Maximum Alert Level 1 | . 1 . Low Security (%) 99 | 100 99 100 Level 1 . | . . . Level 2 . | . . . Level 3 . | . . . Level 4 . | . . . Level 5 . | . . . High Security . | . . . Max Security . | . . . Squads Dispatched 5 | . 5 . Investigation 4 | . 4 . Extermination . | . . . Reinforcement 1 | . 1 . Assault . | . . . Garrison . | . . . Intercept . | . . . Searches Triggered . | . . . Construction Impeded . | . . . Haulers Reinforced . | . . . Active Scanning Responses . | . . . Cargo Convoy Interrupts . | . . . Stealth | -11 -10 -10 --------- Run | Scr Mat Min Distress Signals 3 | . 1 2 Communications Jammed . | . . . Distress Signals . | . . . Times Spotted 35 | . 26 9 Peak Tracking Total 5 | . 5 3 Tactical Retreats 2 | . . 2 Traps | -11 -10 -10 ------- Run | Scr Mat Min Traps Triggered 5 | . 5 . Indirectly . | . . . Trap Hack Attempts . | . . . Triggered . | . . . Disarmed . | . . . Reprogrammed . | . . . Reused . | . . . Traps Extracted . | . . . Installed . | . . . Triggered . | . . . Machines | -11 -10 -10 ---------- Run | Scr Mat Min Machines Disabled 1 | . . 1 Max in Single Turn 1 | . . 1 Machines Sabotaged . | . . . Garrisons Compromised . | . . . Overloaded Fab Kills . | . . . Hacking | -11 -10 -10 --------- Run | Scr Mat Min Machines Accessed 7 | . 7 . Terminals 5 | . 5 . Fabricators . | . . . Repair Stations 1 | . 1 . Recycling Units 1 | . 1 . Scanalyzers . | . . . Garrison Access . | . . . Total Hacks 15 | . 15 . Successful 10 | . 10 . Failed 5 | . 5 . Catastrophic . | . . . Database Lockouts . | . . . Manual 5 | . 5 . Terminals 9 | . 9 . Fabricators . | . . . Repair Stations 3 | . 3 . Recycling Units 3 | . 3 . Scanalyzers . | . . . Garrison Access . | . . . Terminal Hacks 5 | . 5 . Branch Access Points 2 | . 2 . Emergency Access Points 1 | . 1 . Hauler Manifests 1 | . 1 . Zone Layout 1 | . 1 . Fabricator Hacks . | . . . Repair Station Hacks 3 | . 3 . Scan Component 2 | . 2 . Repair 1 | . 1 . Recycling Unit Hacks . | . . . Scanalyzer . | . . . Garrison Access Hacks . | . . . Unauthorized Hacks 2 | . 2 . Terminals . | . . . Fabricators . | . . . Repair Stations . | . . . Recycling Units 2 | . 2 . Reject 1 | . 1 . Mask 1 | . 1 . Scanalyzers . | . . . Garrison Access . | . . . Data Cores Recovered . | . . . Used . | . . . Hacking Detections 3 | . 3 . Full Trace Events 2 | . 2 . Feedback Events . | . . . Feedback Blocked . | . . . Robot Schematics Acquired . | . . . Robots Built . | . . . Authchips . | . . . Time . | . . . Total Robot Build Rating . | . . . Part Schematics Acquired . | . . . Parts Built . | . . . Authchips . | . . . Time . | . . . Total Part Build Rating . | . . . Parts Repaired 1 | . 1 . Time 26 | . 26 . Parts Recycled . | . . . Recycled Matter . | . . . Retrieved Matter . | . . . Retrieved Components . | . . . Parts Scanalyzed . | . . . Part Schematics Acquired . | . . . Parts Damaged . | . . . Bothacking | -11 -10 -10 ------------ Run | Scr Mat Min Used RIF Installer . | . . . Robots Hacked . | . . . Non-combat . | . . . Combat . | . . . Robot Hacks Applied . | . . . Relay Couplers Released . | . . . Fabnet Peak Effective % . | . . . Robots Rewired . | . . . Allies Hacked . | . . . Hacks Repelled . | . . . Allies | -11 -10 -10 -------- Run | Scr Mat Min Total Allies 3 | . . 3 Largest Group 3 | . . 3 Highest-Rated Group 40 | . . 40 Highest-Rated Ally 16 | . . 16 Total Orders . | . . . Ally Attacks 24 | . . 24 Total Damage 193 | . . 193 Kills 3 | . . 3 Allies Corrupted . | . . . Allies Melted . | . . . Intel | -11 -10 -10 ------- Run | Scr Mat Min Robot Analysis Total . | . . . Derelict Logs Recovered 1 | . . 1 Drone Launches . | . . . Drone Recoveries . | . . . Exploration | -11 -10 -10 ------------- Run | Scr Mat Min Turns Passed 2722 | 63 1483 1176 Spaces Moved 1346 | 38 691 617 Core 12 | 9 3 . Treads 1294 | 29 648 617 Legs 40 | . 40 . Wheels . | . . . Hover . | . . . Flight . | . . . Fastest Speed 50 | 50 120 160 Average Speed 158 | 133 158 160 Slowest Speed 300 | 160 300 160 Overloaded Moves . | . . . Propulsion Burnouts . | . . . Robots Hopped . | . . . Cave-ins Triggered . | . . . Exploration Rate (%) 64 | 4 96 92 Regions Visited 2 Branch Regions 1 Pre-discovered Areas . | . . . Known Exits Taken 1 | . 1 . Unknown Exits Taken 1 | 1 . . Scrap Searched 1 | . . 1 Spaces Dug 1 | . 1 . Terrain Destroyed 1 | . 1 . Melee . | . . . Projectile 1 | . 1 . AOE . | . . . Terrain Rammed . | . . . Walls Destroyed . | . . . Machines Disabled . | . . . Actions | -11 -10 -10 --------- Run | Scr Mat Min Total 1768 | 48 939 781 Wait 262 | . 112 150 Move 1344 | 37 690 617 Hop . | . . . Pick Up 31 | 5 26 . Fast Attach 9 | 4 5 . Attach 12 | 2 10 . Detach . | . . . Swap 4 | . 4 . Drop 12 | . 12 . Fire 92 | . 78 14 Melee . | . . . Ram . | . . . Kick . | . . . Crush 2 | . 2 . Escape Stasis . | . . . Rewire . | . . . Trap . | . . . Miscellaneous . | . . . Route ------- -11/Scrapyard -10/Materials (discovered 5 exits: [*Mat x3] / *Min x2) -10/Mines (discovered 2 exits: [*Mat x2]) History --------- Turn | Location | Event 14 | -11/Scrapyard | Discovered new exit (range 16) 64 | -11/Scrapyard | Entered Materials 79 | -10/Materials | Identified exit to Mines 300 | -10/Materials | Build established: Mutant 504 | -10/Materials | Core integrity fell below 50% 536 | -10/Materials | Lost 3 parts (1p1n1w) 645 | -10/Materials | Discovered new exit (range 7) 851 | -10/Materials | Discovered new exit (range 4) 910 | -10/Materials | Build established: Scavenger-Mutant 976 | -10/Materials | Repaired Lgt. Treads 1209 | -10/Materials | Discovered new exit (range 10) 1547 | -10/Materials | Entered Mines 1565 | -10/Mines | Discovered new exit (range 8) 1648 | -10/Mines | Assembled infested the area 1653 | -10/Mines | Assisted by a Guerilla fighting off Assembled 1786 | -10/Mines | Assisted by bots powering up and referring to "LRC-V3" 1889 | -10/Mines | Learned Materials garrison access intel 2236 | -10/Mines | Discovered new exit (range 8) 2539 | -10/Mines | Core integrity fell below 20% 2723 | -10/Mines | Destroyed by D-53 Grenadier with Mini Grenade Launcher Last Messages --------------- 02433_ System corrupted: Heat flow error (+233). 02509_ 4ENM/,,YT,OA7LC=LNK WDP& 02517_ Trooper 1b destroyed. 02523_ Trooper 1a destroyed. 02525_ K-01 Serf destroyed. 02533_ System corrupted: Lgt. Assault Rifle jammed. 02539_ S-10 Pest destroyed. 02540_ Acquired 12 matter. 02542_ Acquired 19 matter. 02545_ Acquired 4 matter. 02547_ S-10 Pest destroyed. 02548_ Acquired 4 matter. 02550_ K-01 Serf collects debris. 02576_ System corrupted: Matter fused (-8). 02584_ S-10 Pest destroyed. 02584_ Pulverizer disabled. 02590_ Acquired 15 matter. 02630_ System corrupted: Component data lost. 02632_ Acquired 9 matter. 02721_ System corrupted: Lgt. Assault Rifle rejected. Map ----- +----------------------------------------------------+ | | | | | | | | | | | | | | | ?????????????????????????????????????????????????? | | ??????????????????????????????????#####??????????? | | ??????????????????????????######### ########???? | | ?####????????????????????## #???? | | ## ##???????????????????# < #???? | | # ##?????????????###### ######## #???? | | ##?#####??????# ### ##??????# #???? | | """ ### ######## ##?# #??????## ##### | | """ ### [ #??# #??????# # | | """ #?##=*##??# #??????# # | | #######??##=#???# ########[ # | | ##### ## #????????#%##### ## """ # | | ????# #### ##????????#!%% ##### """" # | | ????## ##??## #?????????#=##########???# """" # | | ?????### ##????# #?????###?#%#????????????# # | | ???????# #?????# #???### ###=#????????????######## | | ???????# ????? #???# !#???????????????????? | | ???????####????# #???# ####???????????????????? | | ???????????????# #???# @ #?????????????????????? | | #??????????????# #???# ##?????????????????????? | | ##?????????????# #???# ###????????????????????? | | ##########????# #???# ##???????????????????? | | #????# ##### d #???????????????????? | | ######### #????# d #???????????????????? | | #???##### #????# ######## #???????????????????? | | ????# % #????# #####??## ##?####??????????????? | | ##### ### #????# # # ####?###?## ##?????????????? | | #?# #????# # ##???## #?????????????? | | #######?# #????# ## #?### ######????????? | | ????????# ###### # ##### = ####### #? | | ????????# [%= !% !%* #? | | ????????# ######## #### ##### ###### #? | | ????????# #?????# ##??## ##???# !|##?????#? | | ????????# #????# ???####?#####[ ##### #? | | ???????## #????##########???????# =*%!*! ## | | ??????## ##????????????????????# %*%[% # | | ??????# ####?????????????????# [#### | | ??????# ##????????????????# #??## ##! | | ??????# #????????????????# #???# #?? | | #####?# " #????????????????# #???# #??? # | | # ###%### #????????????????# #???# #????### | | #*%=%| !#??# #???????????????# #???# #??????? | | # #### #???# ##???????????????# #???# #??????? | +----------------------------------------------------+ Best States ------------- Heat Dissipation 25 Energy Generation 14 Energy Capacity 250 Matter Stores 300 Matter Capacity 300 Sight Range 18 Terrain Scan Density 85 Weapon Shielding 33 Evasion (%) 50 Recoil Reduction 2 Item Schematics ----------------- None Robot Schematics ------------------ None Fabricated ------------ Nothing Alien Tech Used ----------------- None Achievements -------------- None Challenges ------------ None Game ------ Seed GyrokineticCooledPrototype Manual? 0 Play Time 00:21:10 Cumulative 42.6 hours Start 2022.12.13 @ 15:49:20 End 2022.12.13 @ 16:18:52 Sessions 1 Manual Loads 0 Difficulty Rogue Special Mode None Game No. 55 Rogue 55 Adventurer 0 Explorer 0 Win Type - Total 0 Types 0/0/0/0/0/0/0/0/0 Lore% 28 Gallery% 35 Achievement% 30 Wizard Run 0 Options --------- ASCII 0 Keyboard 0 Movement Mouse Keybinds 0 Fullscreen 2 Font 24/Smallcaps Map View 76x50 Tactical HUD 1 Map Filters NONE Filters NONE Steam 1 RUN: d0c08fc3-6684-447a-997f-f0c116cd8c38